bitfinex-derivatives/quotes_ETHF0:USTF0_20260117
["timestamp","ask_amount","ask_price","bid_price","bid_amount"]
[1768641299220,0.00220782,3296.7,3295.7,0.50577631]
[1768641299416,0.91525487,3296.6,3295.7,0.50577631]
[1768641299618,0.00220782,3296.7,3295.7,0.50577631]
[1768641299819,0.91525345,3296.6,3295.7,0.50577631]
[1768641300019,0.00220782,3296.7,3295.7,0.50577631]
[1768641300225,0.91525833,3296.6,3295.7,0.50577631]
[1768641300414,0.00220782,3296.7,3295.7,0.50577631]
[1768641300614,0.91525928,3296.6,3295.7,0.50577631]
[1768641300822,0.00220782,3296.7,3295.7,0.50577631]
[1768641301021,0.91526043,3296.6,3295.7,0.50577631]
[1768641301319,0.00220782,3296.7,3295.7,0.50577631]
[1768641301522,0.91525892,3296.6,3295.7,0.50577631]
[1768641301722,0.00220782,3296.7,3295.7,0.50577631]
[1768641301924,0.9152601,3296.6,3295.7,0.50577631]
[1768641302115,0.00220782,3296.7,3295.7,0.50577631]
[1768641302409,0.91526297,3296.6,3295.7,0.50577631]
[1768641302613,0.00220782,3296.7,3295.7,0.50577631]
[1768641302817,0.9152634,3296.6,3295.7,0.50577631]
[1768641303017,0.00220782,3296.7,3295.7,0.50577631]
[1768641303217,0.91526259,3296.6,3295.7,0.50577631]
[1768641303419,0.00220782,3296.7,3295.7,0.50577631]
[1768641303719,0.91526351,3296.6,3295.7,0.50577631]
[1768641303920,0.00220782,3296.7,3295.7,0.50577631]
[1768641304119,1.17220517,3296.6,3295.7,0.50577631]
[1768641304322,0.00220782,3296.7,3295.7,0.50577631]
[1768641304512,1.17220657,3296.6,3295.7,0.50577631]
[1768641304716,0.00220782,3296.7,3295.7,0.50577631]
[1768641305016,1.17220657,3296.6,3295.7,0.50577631]
[1768641305218,0.00220782,3296.7,3295.7,0.50577631]
[1768641305417,1.17220779,3296.6,3295.7,0.50577631]
[1768641305619,0.00220782,3296.7,3295.7,0.50577631]
[1768641305815,1.17220815,3296.6,3295.7,0.50577631]
[1768641306024,0.00220782,3296.7,3295.7,0.50577631]
[1768641306225,1.17220724,3296.6,3295.7,0.50577631]
[1768641306418,0.00220782,3296.7,3295.7,0.50577631]
[1768641306618,1.17215665,3296.6,3295.7,0.50577631]
[1768641306821,0.00220782,3296.7,3295.7,0.50577631]
[1768641307016,1.17215246,3296.6,3295.7,0.50577631]
[1768641307220,0.00220782,3296.7,3295.7,0.50577631]
[1768641307519,1.17215715,3296.6,3295.7,0.50577631]
[1768641307718,0.00220782,3296.7,3295.7,0.50577631]
[1768641307922,1.17215743,3296.6,3295.7,0.50577631]
[1768641308124,0.00220782,3296.7,3295.7,0.50577631]
[1768641308326,1.17216037,3296.6,3295.7,0.50577631]
[1768641308527,0.00220782,3296.7,3295.7,0.50577631]
[1768641308823,1.17215684,3296.6,3295.7,0.50577631]
[1768641309133,0.00220782,3296.7,3295.7,0.50577631]
[1768641309324,1.17216091,3296.6,3295.7,0.50577631]
[1768641309523,0.00220782,3296.7,3295.7,0.50577631]
[1768641309816,1.17216115,3296.6,3295.7,0.50577631]
[1768641310015,0.00220782,3296.7,3295.7,0.50577631]
[1768641310220,1.1721653,3296.6,3295.7,0.50577631]
[1768641310418,0.00220782,3296.7,3295.7,0.50577631]
[1768641310725,1.17216552,3296.6,3295.7,0.50577631]
[1768641310933,0.00220782,3296.7,3295.7,0.50577631]
[1768641311126,1.17214881,3296.6,3295.7,0.50577631]
[1768641311325,0.00220782,3296.7,3295.7,0.50577631]
[1768641311527,1.17214919,3296.6,3295.7,0.50577631]
[1768641311725,0.00220782,3296.7,3295.7,0.50577631]
[1768641311927,1.17214875,3296.6,3295.7,0.50577631]
[1768641312127,0.00220782,3296.7,3295.7,0.50577631]
[1768641312327,1.17214885,3296.6,3295.7,0.50577631]
[1768641312529,0.91521951,3296.5,3295.7,0.50577631]
[1768641312729,0.91521951,3296.4,3295.7,0.50577631]
[1768641312929,0.00220782,3296.7,3295.7,0.50577631]
[1768641313134,1.17214905,3296.6,3295.7,0.50577631]
[1768641313334,0.91521966,3296.5,3295.7,0.50577631]
[1768641313533,0.91521966,3296.4,3295.7,0.50577631]
[1768641313732,0.00220782,3296.7,3295.7,0.50577631]
[1768641313934,0.91521993,3296.6,3295.7,0.50577631]
[1768641314135,0.91521993,3296.5,3295.7,0.50577631]
[1768641314323,0.91521993,3296.4,3295.7,0.50577631]
[1768641314531,0.00220782,3296.7,3295.7,0.50577631]
[1768641314729,0.91522025,3296.6,3295.7,0.50577631]
[1768641314929,0.91522025,3296.5,3295.7,0.50577631]
[1768641315132,0.91522025,3296.4,3295.7,0.50577631]
[1768641315323,0.00220782,3296.7,3295.7,0.50577631]
[1768641315527,0.91522152,3296.6,3295.7,0.50577631]
[1768641315835,0.91522152,3296.5,3295.7,0.50577631]
[1768641316036,0.91522152,3296.4,3295.7,0.50577631]
[1768641316238,0.00220782,3296.7,3295.7,0.50577631]
[1768641316438,0.91508903,3296.6,3295.7,0.50577631]
[1768641316639,0.91508903,3296.5,3295.7,0.50577631]
[1768641316830,0.91508903,3296.4,3295.7,0.50577631]
[1768641317132,0.00220782,3296.7,3295.7,0.50577631]
[1768641317333,0.91508887,3296.6,3295.7,0.50577631]
[1768641317633,0.91508887,3296.5,3295.7,0.50577631]
[1768641317830,0.91508887,3296.4,3295.7,0.50577631]
[1768641318030,0.00220782,3296.7,3295.7,0.50577631]
[1768641318236,0.91509358,3296.6,3295.7,0.50577631]
[1768641318535,0.91509358,3296.5,3295.7,0.50577631]
[1768641318736,0.91509358,3296.4,3295.7,0.50577631]
[1768641318937,0.00220782,3296.7,3295.7,0.50577631]
[1768641319138,0.91509518,3296.6,3295.7,0.50577631]
[1768641319336,0.91509518,3296.5,3295.7,0.50577631]
[1768641319537,0.91509518,3296.4,3295.7,0.50577631]
[1768641319741,0.00220782,3296.7,3295.7,0.50577631]
[1768641319928,0.91511322,3296.6,3295.7,0.50577631]
[1768641320128,0.91511322,3296.5,3295.7,0.50577631]
[1768641320328,0.91511322,3296.4,3295.7,0.50577631]
[1768641320632,0.00220782,3296.7,3295.7,0.50577631]
[1768641320832,0.91511281,3296.6,3295.7,0.50577631]
[1768641321040,0.91511281,3296.5,3295.7,0.50577631]
[1768641321235,0.91511281,3296.4,3295.7,0.50577631]
[1768641321433,0.00220782,3296.7,3295.7,0.50577631]
[1768641321636,0.91497705,3296.6,3295.7,0.50577631]
[1768641321930,0.91497705,3296.5,3295.7,0.50577631]
[1768641322127,0.91497705,3296.4,3295.7,0.50577631]
[1768641322345,0.00220782,3296.7,3295.7,0.50577631]
[1768641322639,0.91498269,3296.6,3295.7,0.50577631]
[1768641322835,0.00220782,3296.7,3295.7,0.50577631]
[1768641323037,0.91498263,3296.6,3295.7,0.50577631]
[1768641323237,0.00220782,3296.7,3295.7,0.50577631]
[1768641323428,0.91498227,3296.6,3295.7,0.50577631]
[1768641323629,0.00220782,3296.7,3295.7,0.50577631]
[1768641323830,0.91498435,3296.6,3295.7,0.50577631]
[1768641324028,0.00220782,3296.7,3295.7,0.50577631]
[1768641324233,0.91498455,3296.6,3295.7,0.50577631]
[1768641324440,0.00220782,3296.7,3295.7,0.50577631]
[1768641324633,0.91498474,3296.6,3295.7,0.50577631]
[1768641324932,0.00220782,3296.7,3295.7,0.50577631]
[1768641325135,0.91568508,3296.6,3295.7,0.50577631]
[1768641325335,0.00220782,3296.7,3295.7,0.50577631]
[1768641325536,0.91568511,3296.6,3295.7,0.50577631]
[1768641325743,0.00220782,3296.7,3295.7,0.50577631]
[1768641325947,0.91568611,3296.6,3295.7,0.50577631]
[1768641326147,0.00220782,3296.7,3295.7,0.50577631]
[1768641326348,0.91568648,3296.6,3295.7,0.50577631]
[1768641326540,0.00220782,3296.7,3295.7,0.50577631]
[1768641326834,0.91568743,3296.6,3295.7,0.50577631]
[1768641327035,0.00220782,3296.7,3295.7,0.50577631]
[1768641327236,0.91568775,3296.6,3295.7,0.50577631]
[1768641327438,0.00220782,3296.7,3295.7,0.50577631]
[1768641327633,0.91568782,3296.6,3295.7,0.50577631]
[1768641327848,0.00220782,3296.7,3295.7,0.50577631]
[1768641328042,0.91568778,3296.6,3295.7,0.50577631]
[1768641328241,0.00220782,3296.7,3295.7,0.50577631]
[1768641328447,0.91568822,3296.6,3295.7,0.50577631]
[1768641328643,0.00220782,3296.7,3295.7,0.50577631]
[1768641328842,0.91568726,3296.6,3295.7,0.50577631]
[1768641329140,0.00220782,3296.7,3295.7,0.50577631]
[1768641329341,0.9156878,3296.6,3295.7,0.50577631]
[1768641329642,0.00220782,3296.7,3295.7,0.50577631]
[1768641329843,0.91568786,3296.6,3295.7,0.50577631]
[1768641330051,0.00220782,3296.7,3295.7,0.50577631]
[1768641330248,0.9156878,3296.6,3295.7,0.50577631]
[1768641330548,0.00220782,3296.7,3295.7,0.50577631]
[1768641330747,0.9156879,3296.6,3295.7,0.50577631]
[1768641330936,0.00220782,3296.7,3295.7,0.50577631]
[1768641331142,0.91568788,3296.6,3295.7,0.50577631]
[1768641331449,0.00220782,3296.7,3295.7,0.50577631]
[1768641331653,0.91568886,3296.6,3295.7,0.50577631]
[1768641331842,0.00220782,3296.7,3295.7,0.50577631]
[1768641332042,0.91568995,3296.6,3295.7,0.50577631]
[1768641332244,0.00220782,3296.7,3295.7,0.50577631]
[1768641332546,0.9156889,3296.6,3295.7,0.50577631]
[1768641332846,0.98274986,3296.6,3295.7,0.50577631]
[1768641336655,0.00220782,3296.7,3295.7,0.50577631]
[1768641336849,1.89828695,3296.6,3295.7,0.50577631]
[1768641337049,0.98274986,3296.6,3295.7,0.50577631]
[1768641337449,0.00220782,3296.7,3295.7,0.50577631]
[1768641337656,0.91558991,3296.6,3295.7,0.50577631]
[1768641337849,0.98495768,3296.7,3295.7,0.50577631]
[1768641338048,0.91558906,3296.6,3295.7,0.50577631]
[1768641338251,0.98495768,3296.7,3295.7,0.50577631]
[1768641338451,0.91558902,3296.6,3295.7,0.50577631]
[1768641338651,0.98495768,3296.7,3295.7,0.50577631]
[1768641338951,0.91545865,3296.6,3295.7,0.50577631]
[1768641339159,0.98495768,3296.7,3295.7,0.50577631]
[1768641339350,0.91545737,3296.6,3295.7,0.50577631]
[1768641339551,0.98495768,3296.7,3295.7,0.50577631]
[1768641339753,0.91545399,3296.6,3295.7,0.50577631]
[1768641340049,0.98495768,3296.7,3295.7,0.50577631]
[1768641340250,0.91545397,3296.6,3295.7,0.50577631]
[1768641340546,0.98495768,3296.7,3295.7,0.50577631]
[1768641340749,0.91544577,3296.6,3295.7,0.50577631]
[1768641340946,0.98495768,3296.7,3295.7,0.50577631]
[1768641341150,0.9154448,3296.6,3295.7,0.50577631]
[1768641341349,0.98495768,3296.7,3295.7,0.50577631]
[1768641341549,0.91543749,3296.6,3295.7,0.50577631]
[1768641341749,0.98495768,3296.7,3295.7,0.50577631]
[1768641341946,0.9154375,3296.6,3295.7,0.50577631]
[1768641342150,0.98495768,3296.7,3295.7,0.50577631]
[1768641342350,0.91543741,3296.6,3295.7,0.50577631]
[1768641342548,0.98495768,3296.7,3295.7,0.50577631]
[1768641342748,0.91543146,3296.6,3295.7,0.50577631]
[1768641342948,0.98495768,3296.7,3295.7,0.50577631]
[1768641343161,0.9154314,3296.6,3295.7,0.50577631]
[1768641343359,0.98495768,3296.7,3295.7,0.50577631]
[1768641343564,0.91542567,3296.6,3295.7,0.50577631]
[1768641343768,0.98495768,3296.7,3295.7,0.50577631]
[1768641343955,1.17221604,3296.6,3295.7,0.50577631]
[1768641344254,0.98495768,3296.7,3295.7,0.50577631]
[1768641344454,1.17220434,3296.6,3295.7,0.50577631]
[1768641344652,0.98495768,3296.7,3295.7,0.50577631]
[1768641344852,1.17220368,3296.6,3295.7,0.50577631]
[1768641345059,0.98495768,3296.7,3295.7,0.50577631]
[1768641345352,1.17220349,3296.6,3295.7,0.50577631]
[1768641345552,0.98495768,3296.7,3295.7,0.50577631]
[1768641345763,1.17219981,3296.6,3295.7,0.50577631]
[1768641345964,0.98495768,3296.7,3295.7,0.50577631]
[1768641346164,1.17219981,3296.6,3295.7,0.50577631]
[1768641346357,0.98495768,3296.7,3295.7,0.50577631]
[1768641346559,1.17219752,3296.6,3295.7,0.50577631]
[1768641346758,0.98495768,3296.7,3295.7,0.50577631]
[1768641346971,1.17219752,3296.6,3295.7,0.50577631]
[1768641347275,0.98495768,3296.7,3295.7,0.50577631]
[1768641347566,1.1721946,3296.6,3295.7,0.50577631]
[1768641347768,0.98495768,3296.7,3295.7,0.50577631]
[1768641347972,1.17219554,3296.6,3295.7,0.50577631]
[1768641348165,0.98495768,3296.7,3295.7,0.50577631]
[1768641348470,1.17219685,3296.6,3295.7,0.50577631]
[1768641348675,0.98495768,3296.7,3295.7,0.50577631]
[1768641348967,1.17219857,3296.6,3295.7,0.50577631]
[1768641349166,0.98495768,3296.7,3295.7,0.50577631]
[1768641349367,1.17219869,3296.6,3295.7,0.50577631]
[1768641349574,0.98495768,3296.7,3295.7,0.50577631]
[1768641349763,1.17219998,3296.6,3295.7,0.50577631]
[1768641349963,0.98495768,3296.7,3295.7,0.50577631]
[1768641350261,1.17219998,3296.6,3295.7,0.50577631]
[1768641350561,0.98495768,3296.7,3295.7,0.50577631]
[1768641350754,1.17220303,3296.6,3295.7,0.50577631]
[1768641350961,0.98495768,3296.7,3295.7,0.50577631]
[1768641351162,1.17220303,3296.6,3295.7,0.50577631]
[1768641351470,0.98495768,3296.7,3295.7,0.50577631]
[1768641351667,1.1722075,3296.6,3295.7,0.50577631]
[1768641351966,0.98495768,3296.7,3295.7,0.50577631]
[1768641352168,1.17220735,3296.6,3295.7,0.50577631]
[1768641352466,0.98495768,3296.7,3295.7,0.50577631]
[1768641352666,1.17221327,3296.6,3295.7,0.50577631]
[1768641352866,0.98495768,3296.7,3295.7,0.50577631]
[1768641353067,1.17221327,3296.6,3295.7,0.50577631]
[1768641353268,0.98495768,3296.7,3295.7,0.50577631]
[1768641353468,1.17222078,3296.6,3295.7,0.50577631]
[1768641353769,0.98495768,3296.7,3295.7,0.50577631]
[1768641353969,0.91542908,3296.6,3295.7,0.50577631]
[1768641354171,0.98495768,3296.7,3295.7,0.50577631]
[1768641354367,0.91542908,3296.6,3295.7,0.50577631]
[1768641354571,0.98495768,3296.7,3295.7,0.50577631]
[1768641354765,0.91543627,3296.6,3295.7,0.50577631]
[1768641354967,0.98495768,3296.7,3295.7,0.50577631]
[1768641355164,0.91717638,3296.6,3295.7,0.50577631]
[1768641355464,0.98495768,3296.7,3295.7,0.50577631]
[1768641355662,0.91718497,3296.6,3295.7,0.50577631]
[1768641355867,0.98495768,3296.7,3295.7,0.50577631]
[1768641356068,0.91718497,3296.6,3295.7,0.50577631]
[1768641356269,0.98495768,3296.7,3295.7,0.50577631]
[1768641356470,0.9171955,3296.6,3295.7,0.50577631]
[1768641356671,0.98495768,3296.7,3295.7,0.50577631]
[1768641356971,0.91719556,3296.6,3295.7,0.50577631]
[1768641357170,0.98495768,3296.7,3295.7,0.50577631]
[1768641357376,0.91719669,3296.6,3295.7,0.50577631]
[1768641357577,0.98495768,3296.7,3295.7,0.50577631]
[1768641357777,0.91720962,3296.6,3295.7,0.50577631]
[1768641357977,0.98495768,3296.7,3295.7,0.50577631]
[1768641358176,0.91720895,3296.6,3295.7,0.50577631]
[1768641358376,0.98495768,3296.7,3295.7,0.50577631]
[1768641358580,0.91722493,3296.6,3295.7,0.50577631]
[1768641358781,0.98495768,3296.7,3295.7,0.50577631]
[1768641358970,0.91722493,3296.6,3295.7,0.50577631]
[1768641359267,0.98495768,3296.7,3295.7,0.50577631]
[1768641359469,0.91724366,3296.6,3295.7,0.50577631]
[1768641359669,0.98495768,3296.7,3295.7,0.50577631]
[1768641359870,0.91724366,3296.6,3295.7,0.50577631]
[1768641360169,0.98495768,3296.7,3295.7,0.50577631]
[1768641360468,0.91724413,3296.6,3295.7,0.50577631]
[1768641360664,0.98495768,3296.7,3295.7,0.50577631]
[1768641360865,0.91726714,3296.6,3295.7,0.50577631]
[1768641361081,0.98495768,3296.7,3295.7,0.50577631]
[1768641361280,0.91727034,3296.6,3295.7,0.50577631]
[1768641361578,0.98495768,3296.7,3295.7,0.50577631]
[1768641361776,0.91730215,3296.6,3295.7,0.50577631]
[1768641361977,0.98495768,3296.7,3295.7,0.50577631]
[1768641362182,0.91730113,3296.6,3295.7,0.50577631]
[1768641362373,0.91736612,3296.5,3295.7,0.50577631]
[1768641362569,0.91736612,3296.4,3295.7,0.50577631]
[1768641362869,0.91736612,3296.3,3295.7,0.50577631]
[1768641363070,0.98495768,3296.7,3295.7,0.50577631]
[1768641363282,0.91736474,3296.6,3295.7,0.50577631]
[1768641363487,0.91736474,3296.5,3295.7,0.50577631]
[1768641363676,0.91736474,3296.4,3295.7,0.50577631]
[1768641363877,0.91736474,3296.3,3295.7,0.50577631]
[1768641364070,0.98495768,3296.7,3295.7,0.50577631]
[1768641364274,0.91736625,3296.6,3295.7,0.50577631]
[1768641364480,0.91736625,3296.5,3295.7,0.50577631]
[1768641364785,0.91736625,3296.4,3295.7,0.50577631]
[1768641364978,0.91736625,3296.3,3295.7,0.50577631]
[1768641365178,0.98495768,3296.7,3295.7,0.50577631]
[1768641365381,0.91736611,3296.6,3295.7,0.50577631]
[1768641365581,0.91736611,3296.5,3295.7,0.50577631]
[1768641365882,0.91736611,3296.4,3295.7,0.50577631]
[1768641366081,0.91736611,3296.3,3295.7,0.50577631]
[1768641366277,0.98495768,3296.7,3295.7,0.50577631]
[1768641366479,0.91736578,3296.6,3295.7,0.50577631]
[1768641366683,0.98495768,3296.7,3295.7,0.50577631]
[1768641366684,0.91736578,3296.5,3295.7,0.50577631]
[1768641366877,0.91736578,3296.4,3295.7,0.50577631]
[1768641367078,0.91736578,3296.3,3295.7,0.50577631]
[1768641367284,0.98495768,3296.7,3295.7,0.50577631]
[1768641367486,0.9173667,3296.6,3295.7,0.50577631]
[1768641367677,0.9173667,3296.5,3295.7,0.50577631]
[1768641367873,0.9173667,3296.4,3295.7,0.50577631]
[1768641368073,0.9173667,3296.3,3295.7,0.50577631]
[1768641368278,0.98495768,3296.7,3295.7,0.50577631]
[1768641368584,0.91736672,3296.6,3295.7,0.50577631]
[1768641368786,0.91736672,3296.5,3295.7,0.50577631]
[1768641368988,0.91736672,3296.4,3295.7,0.50577631]
[1768641369190,0.91736672,3296.3,3295.7,0.50577631]
[1768641369386,0.98495768,3296.7,3295.7,0.50577631]
[1768641369686,0.9173667,3296.6,3295.7,0.50577631]
[1768641369889,0.9173667,3296.5,3295.7,0.50577631]
[1768641370081,0.9173667,3296.4,3295.7,0.50577631]
[1768641370375,0.9173667,3296.3,3295.7,0.50577631]
[1768641370685,0.98495768,3296.7,3295.7,0.50577631]
[1768641370881,0.91736653,3296.6,3295.7,0.50577631]
[1768641371088,0.91736653,3296.5,3295.7,0.50577631]
[1768641371287,0.91736653,3296.4,3295.7,0.50577631]
[1768641371588,0.91736653,3296.3,3295.7,0.50577631]
[1768641371786,0.98495768,3296.7,3295.7,0.50577631]
[1768641371988,0.91736513,3296.6,3295.7,0.50577631]
[1768641372187,0.91736513,3296.5,3295.7,0.50577631]
[1768641372382,0.98495768,3296.7,3295.7,0.50577631]
[1768641372582,0.91736289,3296.6,3295.7,0.50577631]
[1768641372787,0.98495768,3296.7,3295.7,0.50577631]
[1768641373088,0.91736291,3296.6,3295.7,0.50577631]
[1768641373290,0.98495768,3296.7,3295.7,0.50577631]
[1768641373488,0.91736118,3296.6,3295.7,0.50577631]
[1768641373789,0.98495768,3296.7,3295.7,0.50577631]
[1768641373985,0.91736126,3296.6,3295.7,0.50577631]
[1768641374186,0.98495768,3296.7,3295.7,0.50577631]
[1768641374382,0.91736131,3296.6,3295.7,0.50577631]
[1768641374687,0.98495768,3296.7,3295.7,0.50577631]
[1768641374889,0.9173624,3296.6,3295.7,0.50577631]
[1768641375076,0.98495768,3296.7,3295.7,0.50577631]
[1768641375278,0.91736247,3296.6,3295.7,0.50577631]
[1768641375485,0.91736247,3296.5,3295.7,0.50577631]
[1768641375788,0.98495768,3296.7,3295.7,0.50577631]
[1768641375989,0.91736284,3296.6,3295.7,0.50577631]
[1768641376179,0.91736284,3296.5,3295.7,0.50577631]
[1768641376379,0.98495768,3296.7,3295.7,0.50577631]
[1768641376583,0.91732864,3296.6,3295.7,0.50577631]
[1768641376793,0.91732864,3296.5,3295.7,0.50577631]
[1768641376993,0.98495768,3296.7,3295.7,0.50577631]
[1768641377191,0.91732864,3296.6,3295.7,0.50577631]
[1768641377391,0.91732864,3296.5,3295.7,0.50577631]
[1768641377691,0.98495768,3296.7,3295.7,0.50577631]
[1768641377890,0.91731797,3296.6,3295.7,0.50577631]
[1768641378191,0.91731797,3296.5,3295.7,0.50577631]
[1768641378391,0.98495768,3296.7,3295.7,0.50577631]
[1768641378690,0.91730223,3296.6,3295.7,0.50577631]
[1768641378988,0.91730223,3296.5,3295.7,0.50577631]
[1768641379190,0.98495768,3296.7,3295.7,0.50577631]
[1768641379392,0.91724413,3296.6,3295.7,0.50577631]
[1768641379593,0.91724413,3296.5,3295.7,0.50577631]
[1768641379794,0.98495768,3296.7,3295.7,0.50577631]
[1768641380093,0.91724222,3296.6,3295.7,0.50577631]
[1768641380292,0.91724222,3296.5,3295.7,0.50577631]
[1768641380494,0.98495768,3296.7,3295.7,0.50577631]
[1768641380797,0.91723286,3296.6,3295.7,0.50577631]
[1768641380998,0.91723286,3296.5,3295.7,0.50577631]
[1768641381198,0.98495768,3296.7,3295.7,0.50577631]
[1768641381398,0.91722595,3296.6,3295.7,0.50577631]
[1768641381599,0.91722595,3296.5,3295.7,0.50577631]
[1768641381798,0.98495768,3296.7,3295.7,0.50577631]
[1768641382002,0.91722039,3296.6,3295.4,0.46100805]
[1768641382300,0.91722039,3296.5,3295.4,0.46100805]
[1768641382490,0.98495768,3296.7,3295.4,0.46100805]
[1768641382691,0.91720602,3296.6,3295.4,0.46100805]
[1768641382891,0.91720602,3296.5,3295.4,0.46100805]
[1768641383098,0.98495768,3296.7,3295.4,0.46100805]
[1768641383400,0.91720037,3296.6,3295.4,0.46100805]
[1768641383592,0.91720037,3296.5,3295.4,0.46100805]
[1768641383792,0.98495768,3296.7,3295.4,0.46100805]
[1768641384102,1.17399374,3296.6,3295.4,0.46100805]
[1768641384299,1.17399374,3296.5,3295.4,0.46100805]
[1768641384501,0.98495768,3296.7,3295.4,0.46100805]
[1768641384700,1.17398996,3296.6,3295.4,0.46100805]
[1768641384901,1.17398996,3296.5,3295.4,0.46100805]
[1768641385100,0.98495768,3296.7,3295.4,0.46100805]
[1768641385402,1.17321961,3296.6,3295.4,0.46100805]
[1768641385698,1.17321961,3296.5,3295.4,0.46100805]
[1768641385898,0.98495768,3296.7,3295.4,0.46100805]
[1768641386204,1.17321579,3296.6,3295.4,0.46100805]
[1768641386397,1.17321579,3296.5,3295.4,0.46100805]
[1768641386597,0.98495768,3296.7,3295.4,0.46100805]
[1768641386798,1.17321031,3296.6,3295.4,0.46100805]
[1768641386999,1.17321031,3296.5,3295.4,0.46100805]
[1768641387191,0.98495768,3296.7,3295.4,0.46100805]
[1768641387397,1.17320688,3296.6,3295.4,0.46100805]
[1768641387597,1.17320688,3296.5,3295.4,0.46100805]
[1768641387798,1.705,3296.6,3295.4,0.46100805]
[1768641387998,1.17320605,3296.5,3295.4,0.46100805]
[1768641388296,1.705,3296.6,3295.4,0.46100805]
[1768641388497,1.17320262,3296.5,3295.4,0.46100805]
[1768641388697,1.705,3296.6,3295.4,0.46100805]
[1768641388900,1.17320255,3296.5,3295.4,0.46100805]
[1768641389106,1.705,3296.6,3295.4,0.46100805]
[1768641389300,1.17320127,3296.5,3295.4,0.46100805]
[1768641389502,1.705,3296.6,3295.4,0.46100805]
[1768641389702,1.17320094,3296.5,3295.4,0.46100805]
[1768641389896,1.705,3296.6,3295.4,0.46100805]
[1768641390097,1.17319974,3296.5,3295.4,0.46100805]
[1768641390298,1.705,3296.6,3295.4,0.46100805]
[1768641390498,1.17319755,3296.5,3295.4,0.46100805]
[1768641390698,1.705,3296.6,3295.4,0.46100805]
[1768641390899,1.17319885,3296.5,3295.4,0.46100805]
[1768641391200,1.705,3296.6,3295.4,0.46100805]
[1768641391397,1.17319772,3296.5,3295.4,0.46100805]
[1768641391601,1.705,3296.6,3295.4,0.46100805]
[1768641391805,1.17318576,3296.5,3295.4,0.46100805]
[1768641392009,1.705,3296.6,3295.4,0.46100805]
[1768641392205,1.17305432,3296.5,3295.4,0.46100805]
[1768641392411,1.705,3296.6,3295.4,0.46100805]
[1768641392610,1.17304942,3296.5,3295.4,0.46100805]
[1768641392910,1.705,3296.6,3295.4,0.46100805]
[1768641393111,1.17304958,3296.5,3295.4,0.46100805]
[1768641393313,1.705,3296.6,3295.4,0.46100805]
[1768641393510,1.17304132,3296.5,3295.4,0.46100805]
[1768641393708,1.17302681,3296.4,3295.4,0.46100805]
[1768641393914,1.705,3296.6,3295.4,0.46100805]
[1768641394112,0.91584032,3296.5,3295.4,0.46100805]
[1768641394410,0.91584032,3296.4,3295.4,0.46100805]
[1768641394611,1.705,3296.6,3295.4,0.46100805]
[1768641394816,0.91571887,3296.5,3295.4,0.46100805]
[1768641395116,1.705,3296.6,3295.4,0.46100805]
[1768641395117,0.91571887,3296.4,3295.4,0.46100805]
[1768641395316,1.705,3296.6,3295.4,0.46100805]
[1768641395517,0.91562307,3296.5,3295.4,0.46100805]
[1768641395709,0.91562307,3296.4,3295.4,0.46100805]
[1768641396012,1.705,3296.6,3295.4,0.46100805]
[1768641396212,0.91561785,3296.5,3295.4,0.46100805]
[1768641396517,0.91561785,3296.4,3295.4,0.46100805]
[1768641396705,1.705,3296.6,3295.3,0.00316733]
[1768641396906,0.9155542,3296.5,3295.3,0.00316733]
[1768641397104,0.9155542,3296.4,3295.3,0.00316733]
[1768641397306,1.705,3296.6,3295.3,0.00316733]
[1768641397503,0.91547983,3296.5,3295.3,0.00316733]
[1768641397704,1.705,3296.6,3295.3,0.00316733]
[1768641397705,0.91547983,3296.4,3295.3,0.00316733]
[1768641397914,1.705,3296.6,3295.3,0.00316733]
[1768641398115,0.91547981,3296.5,3295.3,0.00316733]
[1768641398315,0.91547981,3296.4,3295.3,0.00316733]
[1768641398516,1.705,3296.6,3295.3,0.00316733]
[1768641398717,0.91542183,3296.5,3295.3,0.00316733]
[1768641398916,0.91542183,3296.4,3295.3,0.00316733]
[1768641399105,1.705,3296.6,3295.3,0.00316733]
[1768641399313,0.91537525,3296.5,3295.3,0.00316733]
[1768641399513,0.91537525,3296.4,3295.3,0.00316733]
[1768641399718,1.705,3296.6,3295.3,0.00316733]
[1768641399917,0.91537428,3296.5,3295.3,0.00316733]
[1768641400211,0.91537428,3296.4,3295.3,0.00316733]
[1768641400417,1.705,3296.6,3295.3,0.00316733]
[1768641400717,0.91533317,3296.5,3295.3,0.00316733]
[1768641401017,0.91533317,3296.4,3295.3,0.00316733]
[1768641401216,1.705,3296.6,3295.3,0.00316733]
[1768641401417,0.91529645,3296.5,3295.3,0.00316733]
[1768641401619,0.91529645,3296.4,3295.3,0.00316733]
[1768641401819,1.705,3296.6,3295.3,0.00316733]
[1768641402019,0.91529732,3296.5,3295.3,0.00316733]
[1768641402222,0.91529732,3296.4,3295.3,0.00316733]
[1768641402422,0.91529732,3296.3,3295.3,0.00316733]
[1768641402621,1.705,3296.6,3295.3,0.00316733]
[1768641402824,0.91526872,3296.5,3295.3,0.00316733]
[1768641403125,0.91526872,3296.4,3295.3,0.00316733]
[1768641403318,0.91526872,3296.3,3295.3,0.00316733]
[1768641403523,0.91526872,3296.2,3295.3,0.00316733]
[1768641403719,1.705,3296.6,3295.3,0.00316733]
[1768641403924,0.9152203,3296.5,3295.3,0.00316733]
[1768641404128,0.9152203,3296.5,3295.0,41.87353508]
[1768641404129,1.89806073,3296.4,3295.0,0.43721399]
[1768641404329,0.9152203,3296.3,3295.0,0.43721399]
[1768641404522,0.9152203,3296.2,3295.0,0.43721399]
[1768641404723,0.9152203,3296.1,3295.0,0.43721399]
[1768641404922,0.98284043,3296.4,3295.0,0.43721399]
[1768641405123,0.91509306,3296.3,3295.0,0.44002813]
[1768641405322,0.91509306,3296.2,3295.0,0.44002813]
[1768641405523,0.91509306,3296.1,3295.0,0.44002813]
[1768641405724,0.98284043,3296.4,3295.0,0.44002813]
[1768641406023,0.91495054,3296.3,3295.0,0.44002813]
[1768641406223,0.91495054,3296.2,3295.0,0.44002813]
[1768641406524,0.91495054,3296.1,3295.0,0.44002813]
[1768641406825,0.98284043,3296.4,3295.0,0.44002813]
[1768641407027,0.91482631,3296.3,3295.0,0.44002813]
[1768641407226,0.91482631,3296.2,3295.0,0.44002813]
[1768641407430,0.91482631,3296.1,3295.0,0.44002813]
[1768641407729,0.98284043,3296.4,3295.0,0.44002813]
[1768641407931,0.91471774,3296.3,3295.0,0.44002813]
[1768641408131,0.91471774,3296.2,3295.0,0.44002813]
[1768641408330,0.91471774,3296.1,3295.0,0.44002813]
[1768641408533,0.98284043,3296.4,3295.0,0.44002813]
[1768641408733,0.91462837,3296.3,3295.0,0.44002813]
[1768641408930,0.91462837,3296.2,3295.0,0.44002813]
[1768641409122,0.91462837,3296.1,3295.0,0.44002813]
[1768641409324,0.98284043,3296.4,3295.0,0.44002813]
[1768641409526,0.91455552,3296.3,3295.0,0.44002813]
[1768641409825,0.91455552,3296.2,3295.0,0.44002813]
[1768641410023,0.91455552,3296.1,3295.0,0.44002813]
[1768641410222,0.98284043,3296.4,3295.0,0.44002813]
[1768641410430,0.91449793,3296.3,3295.0,0.44002813]
[1768641410629,0.91449793,3296.2,3295.0,0.44002813]